[Event "93rd German Championship 2022"]
[Site "Magdeburg"]
[Date "2022.08.14"]
[Round "1.11"]
[White "Parvanyan, Ashot"]
[Black "Koehler, Christian Friedrich"]
[Result "1-0"]
[ECO "A04"]
[WhiteElo "2428"]
[BlackElo "2285"]
[Annotator "TA"]
[PlyCount "143"]
[EventDate "2022.08.14"]
[EventType "swiss"]
[EventCountry "GER"]
[SourceTitle "playchess.com"]
[Source "ChessBase"]
[SourceQuality "1"]
[TimeControl "40/5400+30:1800+30"]

{[%evp 21,143,33,22,0,0,7,10,16,28,11,0,0,19,10,72,64,77,0,4,0,0,0,0,0,17,0,63,67,52,39,58,63,81,97,121,45,62,50,51,54,54,50,94,78,95,78,78,78,83,83,106,86,106,106,124,106,106,79,102,102,116,102,102,102,109,109,109,109,116,116,681,667,660,104,116,104,104,104,104,104,104,104,979,19,19,22,104,104,104,104,104,8,8,8,104,104,104,104,104,104,104,104,29964,29965,29967,29968,29971,29972,29972,29974,29974,29975,29975,29976,29976,29977,29981,29982,29982,29983,29984,29984,29987,29988]} 1. Nf3 {[%emt 0:00:06]} f5 {[%emt 0:00:10]} 2. g3 {[%emt 0:01:52]} Nf6 {[%emt 0:00:08]} 3. Bg2 {[%emt 0:00:12]} g6 {[%emt 0:00:08]} 4. O-O {[%emt 0:00:17]} Bg7 {[%emt 0:00:05]} 5. c4 {[%emt 0:00:43]} O-O {[%emt 0:00:10]} 6. d4 {[%emt 0:00:44]} d6 {[%emt 0:00:06]} 7. Nc3 {[%emt 0:01:12]} Qe8 {[%emt 0:00:08]} 8. d5 {[%emt 0:03:20]} Na6 {[%emt 0:00:07][%cal Bb8a6,Ba6c7,Bc7e6,Be6c5,Bc5e4][%mdl 32]} 9. Rb1 {[%emt 0:03:03]} c5 {[%emt 0:00:14]} 10. dxc6 {[%emt 0:04:36]} bxc6 {[%emt 0:00:09]} 11. b4 {[%emt 0:01:16]} Bd7 {[%emt 0:04:26]} 12. Qa4 {[%emt 0:17:53] A87: Dutch Defence: Leningrad System: 5 Nf3.} Nc7 {[%emt 0:01:31]} 13. Qa5 {[%emt 0:01:51]} Ne6 {[%emt 0:04:37]} 14. Bb2 {[%emt 0:00:25] [#] The position is equal.} Qf7 $146 {[%emt 0:19:22]} ({Predecessor:} 14... Qd8 15. Qa3 Rb8 16. Ba1 a5 17. b5 cxb5 18. cxb5 Ne4 19. Nxe4 fxe4 20. Nd2 Bxa1 21. Rxa1 {0-1 (51) Barus,C (2396)-Dao,T (2500) Jakarta 2013}) 15. b5 {[%emt 0:14:04]} Rfc8 {[%emt 0:15:54]} 16. Nd2 {[%emt 0:05:29]} Nc5 {[%emt 0:03:06]} 17. Ba3 {[%emt 0:06:26]} Nfe4 {[%emt 0:02:42]} (17... Nb7 $11 18. Qa6 Nd8) 18. Ncxe4 $16 {[%emt 0:02:32]} Nxe4 {[%emt 0:00:34]} 19. Rfc1 {[%emt 0:03:04] Against Bc3} (19. Nxe4 $16 fxe4 20. bxc6 Bxc6 21. Bh3) 19... Qe6 $11 {[%emt 0:10:20]} 20. Nxe4 {[%emt 0:02:27]} fxe4 {[%emt 0:00:08]} 21. bxc6 {[%emt 0:07:48]} Bxc6 {[%emt 0:00:34]} 22. e3 {[%emt 0:00:08]} Qd7 {[%emt 0:12:54]} 23. Bb2 {[%emt 0:01:57]} Bf6 {[%emt 0:07:27]} (23... Qf5 $11 24. c5 d5) 24. Bxf6 $14 {[%emt 0:10:33]} exf6 {[%emt 0:00:06]} 25. Rb2 {[%emt 0:00:14]} Rab8 {[%emt 0:08:36]} 26. Rd2 {[%emt 0:00:10]} Qe7 {[%emt 0:00:05]} 27. Rcd1 {[%emt 0:00:39]} Be8 {[%emt 0:02:36]} 28. Qd5+ {[%emt 0:08:34]} ({White should play} 28. Rxd6 $16 {Threatens to win with Ra6.} Rxc4 29. Qd5+ Bf7 30. Rd7) 28... Kg7 {[%emt 0:00:08]} 29. Qxe4 {[%emt 0:01:55] White is more active.} Qxe4 {[%emt 0:00:12]} 30. Bxe4 {[%emt 0:00:04]} Rxc4 {[%emt 0:02:06]} 31. Bd5 {[%emt 0:00:41]} Rcb4 {[%emt 0:00:27]} 32. Bb3 {[%emt 0:00:29]} Ba4 {[%emt 0:01:21]} 33. Rxd6 {[%emt 0:01:00]} Bxb3 {[%emt 0:01:44]} 34. axb3 {[%emt 0:00:09]} Rxb3 $16 {[%emt 0:02:07][%mdl 4096] Endgame KRR-KRR} 35. Rd7+ {[%emt 0:00:06]} Kh6 {[%emt 0:00:38]} 36. Rxa7 {[%emt 0:00:32]} Rb1 {[%emt 0:00:15]} 37. Rxb1 {[%emt 0:00:08]} Rxb1+ {[%emt 0:00:06] KR-KR} 38. Kg2 {[%emt 0:00:02]} g5 {[%emt 0:00:46]} 39. g4 {[%emt 0:02:43]} Kg6 {[%emt 0:00:18]} 40. Ra6 $1 {[%emt 0:00:33]} Rb7 {[%emt 0:03:23]} 41. Kg3 {[%emt 0:02:11]} Rb2 {[%emt 0:04:29]} 42. f3 {[%emt 0:13:46]} Re2 {[%emt 0:00:23]} 43. e4 {[%emt 0:00:20]} Kg7 {[%emt 0:05:37]} 44. h4 {[%emt 0:00:44]} gxh4+ {[%emt 0:01:29]} 45. Kxh4 {[%emt 0:00:04]} h6 {[%emt 0:03:17][%mdl 8192] Against g5} (45... Re3 $16) 46. Ra7+ $1 $18 {[%emt 0:03:04]} Kf8 {[%emt 0:00:06]} 47. Kh5 $2 {[%emt 0:05:51]} (47. Kg3 $1 $18 Rc2 48. Rh7) 47... Rf2 {[%emt 0:01:33]} 48. Kg6 {[%emt 0:00:26]} ({Reject} 48. Kxh6 $6 Rxf3 49. Kh5 (49. Kg6 Rf4 $11) 49... Rf4 $11) 48... Rxf3 {[%emt 0:00:06]} 49. Rf7+ {[%emt 0:00:05]} ({Don't play} 49. Kxh6 $6 Rf4 $11) 49... Ke8 {[%emt 0:00:58]} 50. Rxf6 {[%emt 0:00:24]} Rh3 {[%emt 0:00:12]} 51. Ra6 {[%emt 0:08:25]} Ke7 {[%emt 0:05:47][%mdl 8192]} (51... Rg3 $16) 52. Kf5 $2 {[%emt 0:00:22]} (52. Ra7+ $1 $18 Ke8 53. Rh7) 52... Rf3+ $11 {[%emt 0:01:07]} 53. Ke5 {[%emt 0:00:04] Hoping for Re6+.} Rg3 {[%emt 0:00:03] [#]} (53... Rh3 $1 $11 {keeps the balance.}) 54. Ra7+ $1 $16 {[%emt 0:00:59]} Kf8 {[%emt 0:00:06]} 55. Kf4 {[%emt 0:00:46]} Rg1 {[%emt 0:00:19]} 56. e5 {[%emt 0:00:27]} ({White should try} 56. Rh7 $16) 56... Rf1+ $11 {[%emt 0:03:11]} 57. Ke4 {[%emt 0:00:03]} Re1+ {[%emt 0:00:05] [#]} (57... Rg1 $11) 58. Kf5 $1 $16 {[%emt 0:00:04]} Rf1+ {[%emt 0:00:04]} 59. Kg6 {[%emt 0:01:26]} Rg1 {[%emt 0:00:31]} 60. Rf7+ {[%emt 0:00:26]} ({But not} 60. Kxh6 $6 Rxg4 61. Rc7 Ke8 $11) 60... Ke8 {[%emt 0:00:28]} 61. Rf4 {[%emt 0:00:27]} Ke7 $2 {[%emt 0:07:07][%mdl 8192]} (61... Rh1 $16) 62. Kxh6 {[%emt 0:00:14] White mates.} Ke6 {[%emt 0:00:03]} 63. g5 {[%emt 0:00:24][%cal Bg4g5,Bg5g6,Bg6g7][%mdl 32]} Kxe5 {[%emt 0:00:04]} 64. Rf2 {[%emt 0:00:35]} Ke6 {[%emt 0:00:03]} 65. g6 {[%emt 0:00:08]} Rh1+ {[%emt 0:00:12]} 66. Kg7 {[%emt 0:00:04]} Rg1 {[%emt 0:00:05]} 67. Re2+ {[%emt 0:01:03]} Kd6 {[%emt 0:01:35]} 68. Kh7 {[%emt 0:00:15]} Rg4 {[%emt 0:01:10]} 69. g7 {[%emt 0:00:18]} Rh4+ {[%emt 0:00:03]} 70. Kg6 {[%emt 0:00:51]} Rg4+ {[%emt 0:00:03]} 71. Kf6 {[%emt 0:00:12]} Kd7 {[%emt 0:00:10]} 72. Re5 {[%emt 0:00:18] Weighted Error Value: White=0.40/Black=0.33} 1-0

[Event "93rd German Championship 2022"]
[Site "Magdeburg"]
[Date "2022.08.14"]
[Round "1.12"]
[White "Roseneck, Jonas"]
[Black "Yi, Danny"]
[Result "1-0"]
[ECO "A15"]
[WhiteElo "2384"]
[BlackElo "2273"]
[Annotator "TA"]
[PlyCount "67"]
[EventDate "2022.08.14"]
[EventType "swiss"]
[EventCountry "GER"]
[SourceTitle "playchess.com"]
[Source "ChessBase"]
[SourceQuality "1"]
[TimeControl "40/5400+30:1800+30"]

{[%evp 20,67,92,82,100,74,89,81,111,120,129,129,147,140,177,129,298,282,271,280,260,266,300,309,361,260,338,268,808,784,750,651,830,828,967,950,838,741,2200,1282,1273,1229,5090,4902,29963,29969,29969,29970,29968,29970]} 1. c4 {[%emt 0:00:04]} Nf6 {[%emt 0:00:07]} 2. Nf3 {[%emt 0:00:04]} g6 {[%emt 0:00:08]} 3. Nc3 {[%emt 0:00:03]} d5 {[%emt 0:00:23]} 4. cxd5 {[%emt 0:00:18]} Nxd5 {[%emt 0:00:15]} 5. e4 {[%emt 0:00:05]} Nb6 {[%emt 0:01:24]} 6. d4 {[%emt 0:00:27][%cal Bd2d4,Bd4d5,Bd5e6,Be6e7][%mdl 32]} Bg7 {[%emt 0:00:51]} 7. h3 {[%emt 0:01:00]} O-O {[%emt 0:01:44]} 8. Be2 {[%emt 0:01:30]} Nc6 {[%emt 0:07:37]} 9. Be3 {[%emt 0:01:16]} e5 {[%emt 0:15:40]} 10. d5 {[%emt 0:00:23]} Ne7 {[%emt 0:01:10]} 11. O-O {[%emt 0:00:41]} f5 {[%emt 0:04:35] D70: Grünfeld: Unusual White 3rd moves (met by ...d5).} 12. Qb3 {[%emt 0:00:01] [#] Threatens to win with d6+.} Kh8 {[%emt 0:05:40]} 13. Ng5 {[%emt 0:00:26]} h6 {[%emt 0:06:38] White is better.} 14. Ne6 {[%emt 0:00:05] White is much more active. The black rooks are badly placed.} Bxe6 {[%emt 0:00:09]} 15. dxe6 {[%emt 0:00:01] Hoping for Rfd1.} Nc6 {[%emt 0:05:04] [#]} 16. Bc5 {[%emt 0:06:25]} Rg8 {[%emt 0:08:20] [#]} 17. Bb5 $146 {[%emt 0:09:11]} (17. e7 $18 Qe8 18. Bb5) ({Predecessor:} 17. Nb5 Nd4 18. Nxd4 exd4 19. exf5 gxf5 20. Bf3 Qh4 21. Rfe1 Qf4 22. Rad1 Bf6 23. Bxb7 {1-0 (29) Tukmakov,V (2585)-Skok,J (2125) Bled 1997}) 17... Rb8 {[%emt 0:25:57]} (17... Nd4 $16 {was necessary.} 18. e7 Qb8) 18. Bxc6 $18 {[%emt 0:08:55]} bxc6 {[%emt 0:00:07]} 19. e7 {[%emt 0:01:54]} Qc8 {[%emt 0:07:22]} 20. Qf7 {[%emt 0:02:43]} fxe4 {[%emt 0:01:47]} 21. Qxg6 {[%emt 0:01:41]} Nd5 {[%emt 0:01:17]} 22. Nxe4 $40 {[%emt 0:05:27][%cal Oe4g5][%mdl 128] White wants to mate with Ng5! White is out for blood.} Nf4 {[%emt 0:04:31]} 23. Qf7 {[%emt 0:01:47]} Nxh3+ $2 {[%emt 0:00:39]} (23... Qe8 24. Qxe8 Rgxe8) 24. gxh3 {[%emt 0:04:38]} Qxh3 {[%emt 0:00:10]} 25. Ng3 {[%emt 0:01:37]} e4 {[%emt 0:00:34] aiming for ...Be5.} 26. Qf4 {[%emt 0:05:21] Against Be5} ({Don't go for} 26. Bxa7 $2 Be5 27. Rfc1 (27. Bxb8 $2 {gets mated.} Rxg3+ 28. fxg3 Qxg3+ 29. Kh1 Qh2#) 27... Bxg3 28. Qf6+ Kh7 29. Qf7+ Rg7 30. Qxg7+ Kxg7 $19) 26... Rb5 {[%emt 0:00:15]} 27. Rac1 {[%emt 0:02:58]} Qe6 {[%emt 0:01:02]} 28. Rfd1 {[%emt 0:01:17]} Be5 {[%emt 0:00:26]} 29. Bd4 {[%emt 0:03:50][%cal Oc1c6] White threatens Rxc6! and mate.} Bxd4 {[%emt 0:00:26]} 30. Rxd4 {[%emt 0:00:01]} e3 {[%emt 0:00:35]} 31. Re1 {[%emt 0:10:06]} Re5 {[%emt 0:00:34]} 32. Rxe3 {[%emt 0:03:01] White mates.} Rxe3 {[%emt 0:00:27]} 33. Qxe3 {[%emt 0:00:06]} Rxg3+ {[%emt 0:00:35]} 34. Qxg3 {[%emt 0:00:08] Black got outplayed after the opening.  Weighted Error Value: White=0.27 (precise) /Black=0.53} 1-0

[Event "93rd German Championship 2022"]
[Site "Magdeburg"]
[Date "2022.08.14"]
[Round "1.13"]
[White "Schulz, Lukas"]
[Black "Keller, Peter"]
[Result "1-0"]
[ECO "C34"]
[WhiteElo "2272"]
[BlackElo "2377"]
[Annotator "TA"]
[PlyCount "61"]
[EventDate "2022.08.14"]
[EventType "swiss"]
[EventCountry "GER"]
[SourceTitle "playchess.com"]
[Source "ChessBase"]
[SourceQuality "1"]
[TimeControl "40/5400+30:1800+30"]

{[%evp 9,61,-47,-50,-38,-31,-35,-39,-22,-35,-27,-17,-35,-44,-67,-59,-67,-66,-60,-70,-74,-9,-6,-6,-29,13,-7,0,0,0,-20,153,147,131,133,134,44,115,85,140,81,235,260,333,325,743,746,798,714,714,714,925,914,569,568]} 1. e4 {[%emt 0:00:02]} e5 {[%emt 0:00:09]} 2. f4 {[%emt 0:00:10]} exf4 {[%emt 0:00:15]} 3. Nf3 {[%emt 0:00:06]} Nf6 {[%emt 0:00:05]} 4. e5 {[%emt 0:01:26]} Nh5 {[%emt 0:00:06]} 5. Be2 {[%emt 0:00:54]} d6 {[%emt 0:00:14] ...dxe5 is the strong threat.} 6. O-O $1 {[%emt 0:02:52] C34: King's Gambit Accepted: 3 Nf3: 3...Nf6 and 3...d6.} g6 {[%emt 0:05:05]} 7. d4 {[%emt 0:04:37][%cal Bd2d4,Bd4d5][%mdl 32]} Nc6 {[%emt 0:17:27]} 8. Nc3 {[%emt 0:12:24] Black is slightly better.} Bg7 {[%emt 0:11:59][%cal Rd6e5]} 9. exd6 {[%emt 0:14:08]} cxd6 {[%emt 0:00:11]} 10. d5 {[%emt 0:24:39]} Ne5 {[%emt 0:00:46] [#]} 11. Ne1 $146 {[%emt 0:12:09]} ({Predecessor:} 11. Nxe5 dxe5 12. Bxh5 gxh5 13. Qxh5 Qb6+ 14. Kh1 Qg6 15. Qxg6 hxg6 16. Nb5 O-O 17. Nc7 {0-1 (34) Villwock,M (2162)-Fuellgrabe,T (2232) Nordrheinwestfalen 2019}) 11... Nf6 {[%emt 0:16:03]} 12. Bxf4 {[%emt 0:01:31]} O-O {[%emt 0:03:43]} 13. Kh1 {[%emt 0:00:52]} Qb6 {[%emt 0:06:51]} 14. Qd2 {[%emt 0:12:16]} Nfg4 {[%emt 0:04:26] Prevents Be3.} ({Black should play} 14... Re8 $17) 15. h3 $1 $11 {[%emt 0:02:59]} Nf6 {[%emt 0:00:49]} (15... Qxb2 $2 16. Rb1 Qa3 17. hxg4 $18) (15... Nf2+ $2 16. Kh2 $18) 16. Nf3 {[%emt 0:02:33]} Nfd7 {[%emt 0:01:55]} (16... Bf5 {looks sharper.} 17. Nxe5 dxe5 18. Bxe5 Ne4) 17. Na4 {[%emt 0:02:12]} Qc7 {[%emt 0:05:56]} 18. Nd4 $36 {[%emt 0:00:12][%mdl 2048] Black is under pressure.} a6 {[%emt 0:00:21] Against Nb5} 19. Nc3 {[%emt 0:02:47]} Nc4 $2 {[%emt 0:06:30]} (19... Re8 $11) 20. Bxc4 $16 {[%emt 0:00:06]} Qxc4 {[%emt 0:00:04]} 21. Rad1 {[%emt 0:00:34] White is more active.} Ne5 {[%emt 0:00:40]} 22. Bg5 {[%emt 0:00:55]} (22. Bh6 $16) 22... Qc7 {[%emt 0:01:32]} (22... f5 $1 $14) 23. Bf6 {[%emt 0:01:03]} Nc4 {[%emt 0:00:17]} (23... Bxf6 $142 24. Rxf6 Nd7) 24. Qc1 {[%emt 0:00:27]} (24. Qe1 $142) 24... Re8 {[%emt 0:01:22] [#] Inhibits Ne4. Loses the game.} (24... Bxf6 $16 {was called for.} 25. Rxf6 Qe7) 25. Rde1 $1 $18 {[%emt 0:00:29]} Bd7 {[%emt 0:00:24]} 26. Ne4 {[%emt 0:00:19] Hoping for Bxg7. Pair of Knights!} Ne5 $2 {[%emt 0:01:29]} (26... Re5 27. Qf4 Rf8 28. Bxg7 Kxg7) 27. Qf4 {[%emt 0:00:21] White is clearly winning.} Bb5 {[%emt 0:03:22]} 28. Nxb5 {[%emt 0:00:29]} axb5 {[%emt 0:00:02]} 29. Bxg7 {[%emt 0:00:06] [#] White threatens Qh6 and mate.} Kxg7 {[%emt 0:00:06]} 30. Qf6+ {[%emt 0:00:05]} Kg8 {[%emt 0:00:21]} 31. Nxd6 {[%emt 0:00:13] Weighted Error Value: White=0.11 (very precise) /Black=0.39} 1-0

[Event "93rd German Championship 2022"]
[Site "Magdeburg"]
[Date "2022.08.14"]
[Round "1.14"]
[White "Gungl, Theo"]
[Black "Dobrikov, Marco"]
[Result "1/2-1/2"]
[ECO "A50"]
[WhiteElo "2359"]
[BlackElo "2223"]
[Annotator "TA"]
[PlyCount "86"]
[EventDate "2022.08.14"]
[EventType "swiss"]
[EventCountry "GER"]
[SourceTitle "playchess.com"]
[Source "ChessBase"]
[SourceQuality "1"]
[TimeControl "40/5400+30:1800+30"]

{[%evp 11,86,27,61,61,62,55,61,61,61,58,60,35,41,18,68,69,67,54,77,60,92,45,97,91,112,58,61,0,0,0,0,0,0,0,7,10,49,39,42,52,79,75,70,66,82,82,108,104,130,106,104,112,144,151,158,120,148,36,152,129,141,70,70,52,52,22,22,22,22,22,22,22,22,0,22,0,22]} 1. d4 {[%emt 0:00:02] Glatman,V} Nf6 {[%emt 0:00:06]} 2. c4 {[%emt 0:00:05]} g6 {[%emt 0:00:03]} 3. h4 {[%emt 0:00:08][%cal Bh2h4,Bh4h5,Bh5h6][%mdl 32]} Bg7 {[%emt 0:02:31]} 4. Nc3 {[%emt 0:00:25]} O-O {[%emt 0:01:42]} 5. e4 {[%emt 0:01:04]} d6 {[%emt 0:00:09]} 6. Be2 {[%emt 0:00:30]} e5 {[%emt 0:03:08]} 7. d5 {[%emt 0:02:59] E73: King's Indian: Averbakh Variation without 6...c5.} Na6 {[%emt 0:15:37]} 8. h5 {[%emt 0:03:02]} Nc5 {[%emt 0:01:12]} 9. h6 {[%emt 0:01:59] White is slightly better.} Bh8 {[%emt 0:00:06]} 10. Bg5 {[%emt 0:02:01]} a5 {[%emt 0:02:12]} 11. Qc2 {[%emt 0:05:15]} c6 {[%emt 0:05:25]} 12. Nf3 {[%emt 0:06:57] [#]} Qe8 $146 {[%emt 0:07:32]} (12... Bg4 $11) ({Predecessor:} 12... Bd7 13. Nd2 Qc7 14. Nb3 Na6 15. a4 Nb4 16. Qd1 Rae8 17. Rc1 b6 18. Nd2 Bc8 19. dxc6 Qxc6 {1-0 (41) Bareev,E (2660)-Damljanovic,B (2570) Belgrade 1993 CBM 039 [Glatman,V]}) 13. Nd2 {[%emt 0:04:28]} Bd7 {[%emt 0:07:05]} 14. Nb3 {[%emt 0:07:59]} Nxb3 {[%emt 0:13:13]} 15. Qxb3 {[%emt 0:06:21]} Qb8 {[%emt 0:06:05]} 16. Rd1 {[%emt 0:06:49]} (16. dxc6 $16 Bxc6 17. Qc2) 16... a4 {[%emt 0:02:21]} (16... cxd5 $14 17. exd5 (17. Nxd5 Nxd5 18. Rxd5 Bc6 $14) (17. cxd5 b5 $14) 17... Rc8) 17. Qc2 $16 {[%emt 0:03:32]} Rc8 {[%emt 0:05:44]} 18. Qd3 {[%emt 0:03:21]} (18. O-O $16) 18... cxd5 $1 $14 {[%emt 0:01:59]} 19. Bxf6 {[%emt 0:08:25]} ({Of course not} 19. cxd5 b5 $11) ({White should try} 19. Nxd5 $14 Nxd5 20. Qxd5) 19... Bxf6 $11 {[%emt 0:00:02]} 20. Nxd5 {[%emt 0:00:08]} Bd8 {[%emt 0:00:23]} 21. f4 {[%emt 0:08:04][%cal Bf2f4,Bf4f5][%mdl 32]} Be6 {[%emt 0:01:48]} 22. f5 $36 {[%emt 0:07:54][%mdl 2048] White is pushing.} Bxd5 {[%emt 0:00:08]} 23. Qxd5 {[%emt 0:00:02]} Rc5 {[%emt 0:10:26]} 24. Qxd6 {[%emt 0:00:43]} Qxd6 {[%emt 0:00:40]} 25. Rxd6 {[%emt 0:00:03]} Rc6 {[%emt 0:04:28]} 26. Rd7 {[%emt 0:07:25]} Rc7 {[%emt 0:05:21]} 27. Rd5 {[%emt 0:01:11] White is more active.} Bf6 {[%emt 0:00:13]} 28. Kf2 {[%emt 0:03:32]} Rd8 {[%emt 0:02:49]} 29. Rhd1 {[%emt 0:00:45]} Rxd5 {[%emt 0:00:01]} 30. Rxd5 $16 {[%emt 0:00:07][%mdl 4096] Endgame KRB-KRB} b6 {[%emt 0:00:57]} 31. Kf3 {[%emt 0:04:42]} Bg5 {[%emt 0:01:51]} 32. Rxe5 {[%emt 0:00:24][%cal Re5e8] [#]} Bxh6 {[%emt 0:00:01]} 33. f6 {[%emt 0:01:20] aiming for Re8+.} Rc6 {[%emt 0:00:56]} 34. Re8+ {[%emt 0:01:03]} Bf8 {[%emt 0:00:01]} 35. e5 {[%emt 0:00:23]} Re6 {[%emt 0:00:04] [#]} 36. Rxe6 {[%emt 0:03:18]} (36. Rb8 $1 $16 {And now Ke4 would win.} Rxe5 37. Rxb6) 36... fxe6 {[%emt 0:00:01] KB-KB} 37. Ke4 {[%emt 0:01:05]} a3 {[%emt 0:00:45]} 38. b3 {[%emt 0:00:40]} Bb4 {[%emt 0:00:29] The position is equal.} 39. Kd4 {[%emt 0:00:26]} Be1 {[%emt 0:01:38]} 40. Bf3 {[%emt 0:00:49]} Bf2+ {[%emt 0:00:27]} 41. Ke4 {[%emt 0:30:17]} Be1 {[%emt 0:30:10]} 42. Kd4 {[%emt 0:00:38]} Bf2+ {[%emt 0:00:14]} 43. Ke4 {[%emt 0:00:06]} Be1 {Weighted Error Value: White=0.12 (very precise) /Black=0.09 (flawless)} 1/2-1/2

[Event "93rd German Championship 2022"]
[Site "Magdeburg"]
[Date "2022.08.14"]
[Round "1.15"]
[White "Colpe, Malte"]
[Black "Burian, Simon"]
[Result "1-0"]
[ECO "D31"]
[WhiteElo "2369"]
[BlackElo "2189"]
[Annotator "TA"]
[PlyCount "77"]
[EventDate "2022.08.14"]
[EventType "swiss"]
[EventCountry "GER"]
[SourceTitle "playchess.com"]
[Source "ChessBase"]
[SourceQuality "1"]
[TimeControl "40/5400+30:1800+30"]

{[%evp 9,77,-18,26,16,23,23,41,46,56,43,35,43,49,43,61,37,99,31,20,36,18,14,7,4,39,17,34,34,50,-24,74,86,87,81,268,260,275,264,289,263,245,74,201,185,198,88,360,233,245,225,241,226,219,145,147,120,116,105,89,7,49,46,250,229,419,495,29990,29991,29993,29994]} 1. d4 {[%emt 0:00:02]} d5 {[%emt 0:00:07]} 2. c4 {[%emt 0:00:07]} e6 {[%emt 0:00:07]} 3. Nc3 {[%emt 0:01:09]} Be7 {[%emt 0:00:09]} 4. Nf3 {[%emt 0:00:38]} Nf6 {[%emt 0:00:15]} 5. g3 {[%emt 0:01:32]} c5 {[%emt 0:02:31]} 6. cxd5 {[%emt 0:04:27] E01: Catalan: Early deviations.} Nxd5 {[%emt 0:01:35]} 7. Bg2 {[%emt 0:02:46]} Nxc3 {[%emt 0:08:36]} (7... cxd4 {is more complex.} 8. Nxd5 Qxd5 9. Qxd4 O-O) 8. bxc3 {[%emt 0:00:08] White is slightly better.} Qa5 {[%emt 0:01:14]} 9. Bd2 {[%emt 0:04:21]} O-O {[%emt 0:04:19]} 10. O-O {[%emt 0:01:25]} Rd8 {[%emt 0:01:38] [#]} 11. Qc2 $146 {[%emt 0:05:50]} ({Predecessor:} 11. Qb3 Nc6 12. e3 Qa6 13. Rfd1 Bd7 14. Rab1 Na5 15. Qa3 Bc6 16. Bf1 c4 17. Ne5 Bxa3 {0-1 (17) Piorun,K (2640)-Al Hosani,O (2202) Chess.com INT 2021}) 11... h6 {[%emt 0:04:53] Inhibits Ng5.} 12. e4 {[%emt 0:07:12]} Qc7 {[%emt 0:05:40] [#]} ({Black should try} 12... Qa3 $14) 13. Bf4 {[%emt 0:03:59]} (13. d5 $1 $16) 13... Bd6 $1 $14 {[%emt 0:02:07]} 14. Bxd6 {[%emt 0:12:04]} Rxd6 {[%emt 0:00:27]} 15. Qa4 {[%emt 0:10:00] Hoping for Qe8+.} Bd7 {[%emt 0:07:42] Inhibits Qe8+.} 16. Qa3 {[%emt 0:00:49]} Na6 {[%emt 0:08:30]} 17. Rac1 {[%emt 0:02:43]} Be8 {[%emt 0:03:41]} 18. Ne5 {[%emt 0:03:18]} b5 {[%emt 0:05:26] Against Nc4} 19. d5 {[%emt 0:06:44]} (19. Ng4 $14) 19... exd5 {[%emt 0:05:00]} (19... Rb6 $11 {remains equal.} 20. Ng4 Rab8) 20. exd5 $16 {[%emt 0:00:16]} f6 {[%emt 0:02:00]} 21. Nc6 {[%emt 0:06:36]} Bxc6 $2 {[%emt 0:05:50]} (21... Nb8 $16) 22. dxc6 $18 {[%emt 0:00:19]} Qb6 {[%emt 0:00:49]} 23. c4 {[%emt 0:02:14]} b4 {[%emt 0:01:15]} 24. Qe3 {[%emt 0:00:32]} Rad8 {[%emt 0:03:29]} 25. a3 $2 {[%emt 0:04:50]} (25. Bd5+ $18 Kh8 26. Qe7) 25... Kh8 {[%emt 0:04:15]} (25... bxa3 $16 26. Qxa3 Nb4) 26. Rb1 {[%emt 0:02:00]} Qc7 {[%emt 0:05:02]} 27. axb4 {[%emt 0:05:23]} (27. Rfe1 $18) 27... Rd3 $2 {[%emt 0:02:31][%mdl 8192]} (27... Nxb4 $16 {was worth a try.} 28. Qxc5 Nxc6) 28. Qe6 {[%emt 0:00:45]} Nxb4 {[%emt 0:00:44]} 29. Be4 {[%emt 0:01:03]} R3d6 {[%emt 0:01:46]} 30. Qf5 {[%emt 0:00:16][%csl Ge4][%cal Rf5h7] [#]} g5 {[%emt 0:00:19]} 31. Qxc5 {[%emt 0:04:53]} Nxc6 {[%emt 0:01:11]} 32. Ra1 {[%emt 0:00:58] And now Ra6 would win.} a5 {[%emt 0:03:59]} 33. Rfe1 {[%emt 0:00:43]} R8d7 {[%emt 0:01:13]} 34. Bxc6 {[%emt 0:04:32] White is more active.} (34. Qa3 $16) 34... Qxc6 {[%emt 0:02:02]} 35. Rxa5 {[%emt 0:00:27]} Qf3 $2 {[%emt 0:02:14]} ({Black should play} 35... Kg7 $14) 36. Qc8+ $40 {[%emt 0:00:47][%mdl 128] White has strong attack.} Kg7 $2 {[%emt 0:00:41]} (36... Kh7 {might work better.} 37. Ra8 Rd8 38. Qxd8 Rxd8 39. Rxd8 Qc6 40. Re7+ Kg6) 37. Ra8 {[%emt 0:00:34][%csl Ga8][%cal Rc8g8] The board is on fire.} Kg6 {[%emt 0:00:42]} (37... Rd8 $18) 38. Qe8+ {[%emt 0:00:48]} Kf5 {[%emt 0:00:28]} 39. h3 {[%emt 0:00:58] Weighted Error Value: White=0.32/Black=0.69} 1-0